bitfinex/quotes_SOLUSD_20250908
["timestamp","ask_amount","ask_price","bid_price","bid_amount"]
[1757339055564,7.14823876,213.98,213.96,0.03]
[1757339055875,13.59559401,214.0,213.96,0.03]
[1757339055876,7.14823876,213.97,213.96,0.03]
[1757339056363,2.90765317,213.97,213.96,0.03]
[1757339056589,21.54679954,213.97,213.96,0.03]
[1757339057158,47.54679954,213.97,213.96,0.03]
[1757339057347,24.45445271,213.97,213.96,0.03]
[1757339057867,21.54679954,213.97,213.96,0.03]
[1757339058070,39.59559401,213.95,213.94,1e-08]
[1757339058275,45.41090035,213.95,213.94,1e-08]
[1757339058573,55.32955658,213.95,213.94,1e-08]
[1757339059061,54.95955658,213.95,213.94,1e-08]
[1757339061770,18.26958325,213.95,213.94,0.68000001]
[1757339061972,28.95955658,213.95,213.94,0.68000001]
[1757339062180,15.36396257,213.95,213.94,0.68000001]
[1757339062579,28.95955658,213.95,213.94,1e-08]
[1757339063071,28.95955658,213.95,213.94,0.68000001]
[1757339063271,18.26958325,213.95,213.94,0.68000001]
[1757339063475,28.95955658,213.95,213.94,0.68000001]
[1757339063789,28.95955658,213.95,213.94,1e-08]
[1757339064684,4.67398924,213.95,213.94,0.68000001]
[1757339065368,46.5,213.96,213.94,0.68000001]
[1757339065891,46.5,213.96,213.95,0.68]
[1757339066271,51.17377079,213.96,213.95,0.68]
[1757339066867,13.59559401,214.02,213.95,0.68]
[1757339067093,30.67246051,214.02,213.95,5.35397611]
[1757339067275,4.67246051,214.02,213.96,0.68]
[1757339068267,10.68997333,214.01,213.96,0.68]
[1757339068465,10.68997333,214.01,213.97,40.98]
[1757339068677,10.68997333,214.01,213.98,40.3]
[1757339068880,10.68997333,213.99,213.95,0.68]
[1757339069065,10.68997333,213.99,213.96,40.3]
[1757339069279,10.68997333,213.99,213.96,40.98]
[1757339069590,10.68997333,213.98,213.97,40.3]
[1757339069783,10.68997333,213.99,213.97,40.3]
[1757339069983,24.28556734,214.01,213.98,0.68]
[1757339070167,22.37112462,214.02,213.99,0.68]
[1757339070482,11.68115129,214.02,213.99,0.68]
[1757339070683,22.37112462,214.02,213.99,0.68]
[1757339071180,15.36243384,214.02,213.99,0.68]
[1757339072071,15.36243384,214.02,214.0,40.3]
[1757339072072,24.28556734,214.01,214.0,40.3]
[1757339072690,24.28556734,214.01,213.96,0.71]
[1757339072870,10.68997333,213.99,213.97,0.68]
[1757339073074,4.67355236,213.97,213.96,0.03]
[1757339073307,15.36352569,213.97,213.96,0.03]
[1757339073470,28.9591197,213.97,213.96,40.31]
[1757339073671,28.9591197,213.97,213.96,0.03]
[1757339074289,15.36352569,213.97,213.96,0.03]
[1757339074475,4.67355236,213.97,213.96,0.03]
[1757339074683,4.67355236,213.97,213.96,0.71]
[1757339074881,4.67355236,213.97,213.96,0.03]
[1757339075390,15.36352569,213.97,213.96,0.03]
[1757339076395,18.26914637,213.97,213.96,0.03]
[1757339076573,32.4251075,213.97,213.96,0.03]
[1757339076767,28.9591197,213.97,213.96,0.03]
[1757339077282,32.42598053,213.97,213.96,0.03]
[1757339078771,28.9591197,213.97,213.96,0.03]
[1757339079389,15.36352569,213.97,213.96,0.03]
[1757339079780,28.9591197,213.97,213.96,40.29]
[1757339080197,28.9591197,213.97,213.96,0.03]
[1757339080494,22.81204561,213.97,213.96,0.03]
[1757339080881,13.59559401,213.93,213.91,0.03]
[1757339081071,26.0,213.94,213.91,0.03]
[1757339081072,18.13849325,213.92,213.91,0.03]
[1757339081273,13.59559401,213.92,213.91,0.03]
[1757339081478,4.67464472,213.92,213.91,0.03]
[1757339082299,4.67444585,213.93,213.91,0.73]
[1757339082595,1.87077614,213.94,213.91,0.73]
[1757339082596,1.87077614,213.94,213.92,40.96]
[1757339082896,1.87077614,213.94,213.93,0.7]
[1757339083094,4.67398924,213.95,213.93,0.7]
[1757339083496,4.67398924,213.95,213.94,0.7]
[1757339083798,4.67380291,213.96,213.92,40.26]
[1757339084003,4.54289924,213.94,213.91,0.03]
[1757339084180,4.54289924,213.93,213.92,40.26]
[1757339084380,4.54289924,213.93,213.91,40.29]
[1757339084590,4.54289924,213.94,213.91,40.99]
[1757339085090,13.59559401,213.95,213.91,40.29]
[1757339085292,4.54289924,213.93,213.91,40.29]
[1757339085678,4.67464472,213.92,213.91,40.29]
[1757339086002,4.67464472,213.92,213.91,0.03]
[1757339086003,22.81313797,213.92,213.91,0.03]
[1757339086814,4.67464472,213.92,213.91,0.03]
[1757339087003,4.67402603,213.95,213.91,0.03]
[1757339087302,9.21692527,213.95,213.92,0.7]
[1757339087509,18.13849325,213.94,213.91,0.03]
[1757339087684,4.67442621,213.93,213.91,0.03]
[1757339087882,4.54289924,213.92,213.91,0.03]
[1757339088200,18.13849325,213.92,213.91,0.03]
[1757339089677,18.27023873,213.92,213.91,0.03]
[1757339089886,22.81313797,213.92,213.91,0.03]
[1757339091197,18.27023873,213.92,213.91,0.03]
[1757339091402,22.81313797,213.92,213.91,0.03]
[1757339091903,18.27023873,213.92,213.91,0.73]
[1757339092411,18.27023873,213.92,213.91,0.03]
[1757339094179,22.81313797,213.92,213.91,0.03]
[1757339094377,69.68313797,213.92,213.91,0.03]
[1757339094595,69.31313797,213.92,213.91,0.03]
[1757339095295,72.78178143,213.92,213.91,0.03]
[1757339095506,73.15178143,213.92,213.91,0.03]
[1757339096889,72.78178143,213.92,213.91,0.03]
[1757339097090,68.23888219,213.92,213.91,0.03]
[1757339098008,64.77023873,213.92,213.91,0.73]
[1757339098391,64.77023873,213.92,213.91,0.03]
[1757339099387,69.68313797,213.92,213.91,0.03]
[1757339099592,26.65147437,213.92,213.91,0.03]
[1757339100003,26.28147437,213.92,213.91,0.03]
[1757339100601,21.73857513,213.92,213.91,0.03]
[1757339101204,26.27962407,213.92,213.91,0.03]
[1757339101505,21.73672483,213.92,213.91,0.03]
[1757339101707,18.27023873,213.92,213.91,0.73]
[1757339102418,0.06,213.93,213.91,0.73]
[1757339102616,4.73447548,213.93,213.91,0.73]
[1757339102990,0.06,213.96,213.91,0.73]
[1757339103407,0.06,213.96,213.91,17.0919851]
[1757339103615,0.06,213.98,213.91,17.0919851]
[1757339103616,0.06,213.98,213.94,26.0]
[1757339103801,0.06,213.98,213.95,40.18]
[1757339104125,0.06,213.98,213.97,26.0]
[1757339104613,0.06,213.98,213.97,26.7]
[1757339104820,0.06,213.98,213.97,0.7]
[1757339104989,0.06,213.98,213.95,0.7]
[1757339105492,24.2670324,213.97,213.95,40.16]
[1757339105810,13.59559401,213.97,213.95,40.16]
[1757339106009,4.67377079,213.96,213.93,0.7]
[1757339106211,24.2670324,213.97,213.93,40.86]
[1757339106402,13.59559401,213.97,213.94,0.7]
[1757339106596,13.59559401,213.97,213.95,0.7]
[1757339106597,18.26917849,213.97,213.95,0.7]
[1757339107000,24.2670324,213.96,213.95,40.16]
[1757339107202,0.06,213.98,213.95,40.86]
[1757339107508,13.59559401,213.97,213.95,40.16]
[1757339107892,0.06,213.98,213.96,0.7]
[1757339108198,0.06,213.98,213.97,40.14]
[1757339108905,0.06,213.98,213.96,0.7]
[1757339109228,0.06,213.98,213.97,0.7]
[1757339109404,0.06,213.98,213.95,40.14]
[1757339109707,0.06,213.98,213.91,0.03]
[1757339109708,13.59559401,213.96,213.94,40.14]
[1757339110115,0.06,213.98,213.95,0.7]
[1757339110424,0.06,213.98,213.96,0.7]
[1757339110639,46.56,214.02,213.97,26.0]
[1757339110801,0.06,214.02,213.98,0.7]
[1757339111407,0.06,214.0,213.98,0.7]
[1757339112234,0.06,214.0,213.99,26.0]
[1757339112806,0.06,214.0,213.99,26.7]
[1757339113207,0.06,214.0,213.99,31.37311556]
[1757339113525,0.06,214.0,213.99,71.49311556]
[1757339113725,0.06,214.0,213.99,0.7]
[1757339114039,10.73143839,214.0,213.95,0.7]
[1757339114205,10.73143839,214.0,213.96,40.12]
[1757339114403,10.73143839,214.0,213.97,0.7]
[1757339114821,24.2670324,213.98,213.96,27.46]
[1757339115205,4.67355236,213.97,213.96,27.46]
[1757339115625,15.34499075,213.97,213.96,27.46]
[1757339115824,13.59559401,213.96,213.91,0.03]
[1757339116005,24.2670324,213.96,213.92,40.1]
[1757339116206,10.67143839,213.94,213.91,0.03]
[1757339116429,10.67143839,213.94,213.92,40.1]
[1757339116808,24.2670324,213.95,213.92,40.1]
[1757339117004,13.59559401,213.95,213.92,40.1]
[1757339117220,13.59559401,213.96,213.93,0.7]
[1757339117419,4.67311556,213.99,213.94,0.7]
[1757339117640,4.67311556,213.99,213.95,0.7]
[1757339117815,4.67311556,213.99,213.92,40.1]
[1757339118029,4.67311556,213.99,213.96,0.7]
[1757339118228,0.06,214.0,213.97,0.7]
[1757339118446,0.06,214.0,213.98,40.78]
[1757339118737,4.73299881,214.0,213.98,40.78]
[1757339118944,4.73299881,214.0,213.94,0.7]
[1757339119244,27.08668019,214.0,213.95,40.08]
[1757339119538,13.59559401,213.99,213.96,40.08]
[1757339119836,15.4044372,214.0,213.96,40.08]
[1757339120240,27.08668019,214.0,213.96,40.08]
[1757339120417,23.57033006,214.0,213.96,40.08]
[1757339121662,7.15508826,213.98,213.96,40.08]
[1757339122343,0.06,214.0,213.97,0.7]
[1757339122541,0.06,214.0,213.98,0.7]
[1757339122847,11.88805705,214.0,213.98,40.06]
[1757339123040,23.57030004,214.0,213.98,40.06]
[1757339123237,16.41521178,214.0,213.98,40.06]
[1757339123449,4.73296879,214.0,213.98,40.06]
[1757339123650,4.73296879,214.0,213.98,40.76]
[1757339124018,4.73296879,214.0,213.98,40.06]
[1757339124335,0.06,214.0,213.99,0.7]
[1757339125149,4.73289719,214.0,213.99,0.7]
[1757339125440,0.06,214.0,213.99,40.06]
[1757339126453,0.06,214.0,213.99,40.76]
[1757339127240,0.06,214.0,213.99,45.43311556]
[1757339128950,0.06,214.0,213.99,0.7]
[1757339129129,0.06,214.0,213.99,71.39311556]
[1757339129646,0.06,214.0,213.99,66.72]
[1757339129824,0.06,214.0,213.99,71.39311556]
[1757339131238,0.06,214.0,213.99,40.72]
[1757339131425,0.06,214.0,213.99,66.72]
[1757339132045,0.06,214.0,213.99,26.0]
[1757339132233,0.06,214.0,213.99,40.02]
[1757339133237,0.06,214.0,213.96,0.03]
[1757339133446,0.06,214.0,213.97,40.0]
[1757339133751,0.06,214.0,213.97,40.7]
[1757339133939,0.06,214.0,213.98,0.7]
[1757339134640,0.06,214.0,213.99,0.7]
[1757339135248,0.06,214.0,213.96,0.03]
[1757339135455,0.06,214.0,213.99,40.0]
[1757339135754,0.06,214.0,213.99,40.71]
[1757339136439,0.06,214.0,213.99,40.0]
[1757339137346,0.06,214.0,213.99,40.71]
[1757339137646,0.06,214.0,213.99,45.38311556]
[1757339138650,0.06,214.0,213.99,40.71]
[1757339139345,0.06,214.0,213.99,45.38311556]
[1757339139735,0.06,214.0,213.99,40.71]
[1757339140067,0.06,214.0,213.99,45.38311556]
[1757339140233,0.06,214.0,213.99,40.71]
[1757339140545,0.06,214.0,213.96,0.74]
[1757339140755,0.06,214.0,213.99,39.96]
[1757339140941,0.06,214.0,213.97,0.71]
[1757339141127,0.06,214.0,213.96,0.03]
[1757339141330,0.06,214.0,213.97,39.96]
[1757339143552,0.06,214.0,213.98,0.71]
[1757339143938,0.06,214.0,213.99,26.71]
[1757339144135,0.06,214.02,214.0,26.0]
[1757339144438,0.06,214.02,214.01,39.94]
[1757339144643,0.06,214.02,214.01,45.32267884]
[1757339145330,0.06,214.02,214.01,40.65]
[1757339145838,0.06,214.02,214.01,45.32267884]
[1757339146335,0.06,214.12,214.04,26.0]
[1757339146540,0.06,214.12,214.06,4.6715874]
[1757339146949,0.06,214.12,214.08,26.0]
[1757339147142,0.06,214.12,214.08,65.92]
[1757339147336,0.06,214.12,214.08,67.09711509]
[1757339147542,0.06,214.12,214.09,0.71]
[1757339147754,0.06,214.12,214.11,26.0]
[1757339147937,0.06,214.12,214.11,66.63]
[1757339148754,0.06,214.12,214.11,71.30049647]
[1757339150043,0.06,214.12,214.11,66.63]
[1757339150254,0.06,214.12,214.11,71.30049647]
[1757339151054,0.06,214.12,214.11,31.38049647]
[1757339151253,0.06,214.12,214.11,71.26049647]
[1757339152162,0.06,214.12,214.11,66.59]
[1757339152362,0.06,214.12,214.11,71.26049647]
[1757339156659,0.06,214.12,214.11,26.0]
[1757339156857,0.06,214.12,214.11,65.84]
[1757339158465,0.06,214.12,214.11,26.71]
[1757339158761,0.06,214.12,214.08,0.71]
[1757339158954,0.06,214.12,214.1,26.0]
[1757339159155,0.06,214.12,214.11,39.82]
[1757339160246,0.06,214.12,214.11,40.53]
[1757339161370,0.06,214.12,214.11,45.20049647]
[1757339162560,0.06,214.15,214.14,26.0]
[1757339162753,0.06,214.15,214.14,65.8]
[1757339162952,0.06,214.15,214.14,71.17984215]
[1757339163355,0.06,214.17,214.14,82.85444754]
[1757339163566,0.1,214.21,214.15,0.71]
[1757339163773,0.1,214.21,214.19,26.0]
[1757339163977,0.1,214.21,214.2,40.49]
[1757339164176,0.1,214.21,214.2,39.78]
[1757339164782,0.1,214.21,214.17,26.71]
[1757339165089,0.1,214.21,214.2,26.0]
[1757339165566,0.81,214.21,214.17,26.0]
[1757339165766,0.71,214.2,214.18,39.78]
[1757339165955,0.71,214.19,214.14,26.0]
[1757339166156,16.43920371,214.21,214.15,39.78]
[1757339166157,0.71,214.18,214.15,39.78]
[1757339166360,0.71,214.17,214.08,0.67]
[1757339166575,0.71,214.17,214.09,39.76]
[1757339166763,0.71,214.17,214.12,26.0]
[1757339166958,0.71,214.17,214.07,41.91701596]
[1757339166959,4.66962409,214.15,214.07,33.62]
[1757339167265,7.86508826,214.14,214.08,39.76]
[1757339167456,13.59559401,214.12,214.08,39.76]
[1757339167659,7.86508826,214.11,214.07,33.62]
[1757339167896,7.86508826,214.11,213.99,13.59559401]
[1757339167897,0.71,214.1,214.08,39.76]
[1757339168068,7.15508826,214.11,214.08,39.76]
[1757339168069,0.71,214.09,214.08,39.76]
[1757339168760,0.71,214.09,214.06,0.03]
[1757339168761,13.59559401,214.08,214.06,0.03]
[1757339168959,4.67136917,214.07,214.06,39.79]
[1757339169164,0.71,214.07,214.06,39.79]
[1757339169378,0.71,214.11,214.06,39.79]
[1757339169562,0.71,214.1,214.06,39.79]
[1757339169768,0.71,214.09,214.06,39.79]
[1757339170187,14.30559401,214.08,214.07,39.76]
[1757339170887,21.46068227,214.08,214.07,39.76]
[1757339171089,18.97674498,214.08,214.07,39.76]
[1757339171270,26.13183324,214.08,214.07,39.76]
[1757339172766,26.13183324,214.08,214.06,0.03]
[1757339172968,20.75068227,214.07,214.06,0.03]
[1757339173161,25.42205144,214.07,214.06,0.03]
[1757339173362,26.13205144,214.07,214.06,0.03]
[1757339174078,13.59559401,214.03,213.98,0.03]
[1757339174260,13.59559401,213.99,213.98,0.03]
[1757339174670,13.59559401,214.0,213.98,0.03]
[1757339174868,21.46068227,214.0,213.98,0.03]
[1757339175179,5.38311556,213.99,213.98,0.03]
[1757339175383,12.53820382,213.99,213.98,0.03]
[1757339176888,5.38311556,213.99,213.98,0.03]
[1757339177089,12.53820382,213.99,213.98,0.03]
[1757339178274,4.67311556,213.99,213.98,0.03]
[1757339178780,13.59559401,214.0,213.98,0.03]
[1757339179180,26.13359091,214.0,213.98,0.03]
[1757339179680,25.42359091,214.0,213.98,0.03]
[1757339180081,18.26850265,214.0,213.98,0.03]
[1757339180277,7.86508826,213.99,213.98,0.03]
[1757339181487,12.53820382,213.99,213.98,0.03]
[1757339182386,29.6622366,213.99,213.98,0.03]
[1757339182958,39.59559401,213.96,213.95,0.03]
[1757339183183,50.27912104,213.96,213.95,0.03]
[1757339183486,50.98912104,213.96,213.95,0.03]
[1757339183687,55.66289183,213.96,213.95,0.03]
[1757339184269,55.66289183,213.96,213.92,1e-08]
[1757339184270,46.5,213.95,213.92,1e-08]
[1757339184477,50.27912104,213.93,213.92,1e-08]
[1757339184885,50.98912104,213.93,213.92,1e-08]
[1757339185590,50.27912104,213.93,213.92,1e-08]
[1757339185794,54.95354725,213.93,213.92,1e-08]
[1757339186371,44.27002022,213.93,213.92,1e-08]
[1757339186678,55.66354725,213.93,213.92,1e-08]
[1757339186873,54.95354725,213.93,213.92,1e-08]
[1757339188512,55.66354725,213.93,213.92,1e-08]
[1757339190075,54.95354725,213.93,213.92,1e-08]
[1757339190477,55.66354725,213.93,213.92,1e-08]
[1757339193098,95.34354725,213.93,213.92,1e-08]
[1757339193274,55.66354725,213.93,213.92,1e-08]
[1757339195074,95.32354725,213.93,213.92,1e-08]
[1757339196589,55.66354725,213.93,213.88,0.03]
[1757339196785,54.95442142,213.89,213.88,0.03]
[1757339197313,55.65442142,213.89,213.88,0.03]
[1757339197606,57.5255476,213.89,213.88,0.03]
[1757339197800,13.59559401,213.88,213.81,0.75]
[1757339198104,89.93912104,213.87,213.81,0.75]
[1757339198274,90.63912104,213.87,213.81,0.03]
[1757339198484,64.63912104,213.87,213.81,0.03]
[1757339198810,18.27242498,213.82,213.81,0.03]
[1757339198994,28.95595201,213.82,213.81,0.03]
[1757339199200,28.95595201,213.82,213.81,0.75]
[1757339199396,28.95595201,213.82,213.81,0.03]
[1757339201116,39.59559401,213.8,213.79,1e-08]
[1757339201290,89.91912104,213.8,213.79,1e-08]
[1757339201486,39.59559401,213.8,213.79,1e-08]
[1757339201826,90.61912104,213.8,213.79,1e-08]
[1757339202314,50.27912104,213.77,213.76,1e-08]
[1757339202485,89.91912104,213.77,213.76,1e-08]
[1757339202903,90.61912104,213.77,213.76,1e-08]
[1757339203097,95.29704591,213.77,213.76,1e-08]
[1757339203586,94.59704591,213.77,213.76,1e-08]
[1757339203788,97.99908841,213.77,213.76,1e-08]
[1757339204237,58.35908841,213.77,213.76,1e-08]
[1757339204407,94.57704591,213.77,213.76,1e-08]
[1757339204717,18.27351888,213.77,213.76,1e-08]
[1757339204916,18.27351888,213.77,213.76,0.72000001]
[1757339205111,28.95704591,213.77,213.76,0.72000001]
[1757339205890,54.95704591,213.77,213.76,1e-08]
[1757339207208,54.95704591,213.77,213.76,0.72000001]
[1757339207717,13.59559401,213.77,213.76,0.72000001]
[1757339208501,18.27351888,213.77,213.76,0.72000001]
[1757339208897,28.95704591,213.77,213.76,0.72000001]
[1757339209216,13.59559401,213.77,213.76,0.72000001]
[1757339209520,13.59559401,213.78,213.76,0.72000001]
[1757339209897,1.87156393,213.81,213.76,0.72000001]
[1757339210097,4.67726847,213.8,213.76,0.72000001]
[1757339210819,4.67708039,213.81,213.76,0.72000001]
[1757339211506,4.67683097,213.82,213.76,0.72000001]
[1757339211711,3.41978204,213.81,213.76,0.72000001]
[1757339212012,4.67617488,213.85,213.76,31.39811401]
[1757339212217,3.42008602,213.84,213.77,26.72]
[1757339212411,3.42008602,213.83,213.78,0.72]
[1757339212602,3.42008602,213.82,213.78,0.72]
[1757339212795,10.68352703,213.83,213.78,0.72]
[1757339212997,14.10676735,213.82,213.78,0.72]
[1757339213197,14.10676735,213.81,213.79,0.72]
[1757339213398,8.10050879,213.8,213.79,0.72]
[1757339213703,32.37962983,213.8,213.76,0.72000001]
[1757339213903,10.68352703,213.78,213.77,0.72]
[1757339214103,3.42324032,213.78,213.77,0.72]
[1757339214398,3.42324032,213.78,213.76,1e-08]
[1757339214601,53.70580797,213.77,213.76,1e-08]
[1757339214804,43.02228094,213.77,213.76,1e-08]
[1757339215004,17.02228094,213.77,213.76,1e-08]
[1757339215214,3.42668693,213.77,213.76,1e-08]
[1757339215518,8.1046118,213.77,213.76,0.72000001]
[1757339215921,1.87138881,213.83,213.76,0.72000001]
[1757339216098,33.39382597,213.82,213.76,0.72000001]
[1757339216298,13.59559401,213.8,213.76,0.72000001]
[1757339216501,3.42932355,213.79,213.76,0.72000001]
[1757339216707,3.43173057,213.78,213.77,0.72]
[1757339216909,3.43173057,213.78,213.76,1e-08]
[1757339217221,10.68352703,213.78,213.76,1e-08]
[1757339217404,3.43398146,213.77,213.76,0.72000001]
[1757339217722,8.11190633,213.77,213.76,1e-08]
[1757339218019,4.67753598,213.79,213.76,1e-08]
[1757339218222,3.43409906,213.78,213.76,0.72000001]
[1757339218415,3.43409906,213.77,213.76,1e-08]
[1757339218814,13.59559401,213.8,213.76,0.72000001]
[1757339219005,3.43652578,213.79,213.76,0.72000001]
[1757339219206,4.67731639,213.8,213.76,0.72000001]
[1757339219517,11.69227469,213.82,213.76,0.72000001]
[1757339219518,4.67770605,213.78,213.77,0.72]
[1757339219731,8.11572008,213.78,213.76,1e-08]
[1757339220031,14.12154106,213.77,213.76,1e-08]
[1757339220329,3.43801403,213.77,213.76,1e-08]
[1757339220702,3.43886788,213.77,213.76,1e-08]
[1757339221019,3.43886788,213.77,213.76,0.72000001]
[1757339221215,27.71798892,213.77,213.76,1e-08]
[1757339221599,8.11679275,213.77,213.76,0.72000001]
[1757339222004,3.43886788,213.77,213.76,0.72000001]
[1757339222218,8.11679275,213.77,213.76,0.72000001]
[1757339222423,3.43886788,213.77,213.76,0.72000001]
[1757339222630,4.67688768,213.82,213.76,0.72000001]
[1757339222817,3.43845212,213.81,213.76,0.72000001]
[1757339223119,3.43845212,213.8,213.76,0.72000001]
[1757339223322,4.67688768,213.82,213.76,0.72000001]
[1757339223529,3.44065994,213.81,213.76,5.39807076]
[1757339223718,18.28533769,214.35,213.76,5.39807076]
[1757339223719,4.87848453,213.87,213.79,26.0]
[1757339223921,4.87848453,213.87,213.8,40.24]
[1757339224234,27.04631337,213.9,213.81,0.72]
[1757339224410,3.44347748,213.89,213.81,0.72]
[1757339224605,3.44347748,213.88,213.81,0.72]
[1757339224812,3.44347748,213.87,213.81,0.72]
[1757339225027,13.59559401,213.89,213.81,0.72]
[1757339225527,10.74352703,213.93,213.84,30.67639356]
[1757339225705,14.12930202,213.92,213.85,0.66]
[1757339225905,3.44577499,213.91,213.85,0.66]
[1757339226103,10.68352703,213.89,213.86,39.5]
[1757339226324,10.68352703,213.88,213.83,0.66]
[1757339226529,10.68352703,213.87,213.83,40.16]
[1757339226723,13.59559401,213.9,213.82,39.5]
[1757339226724,10.68352703,213.84,213.82,39.5]
[1757339227112,10.68352703,213.83,213.82,39.5]
[1757339227428,10.68352703,213.83,213.76,0.66000001]
[1757339227621,15.360358,213.82,213.78,39.5]
[1757339227821,10.68352703,213.8,213.78,39.5]
[1757339228023,10.68352703,213.81,213.78,39.5]
[1757339228330,10.68352703,213.79,213.76,1e-08]
[1757339228627,24.27912104,213.77,213.76,1e-08]
[1757339228828,10.68352703,213.79,213.76,0.66000001]
[1757339229027,1.87165149,213.81,213.76,0.66000001]
[1757339229327,15.360358,213.82,213.77,0.66]
[1757339229535,15.360358,213.82,213.78,0.66]
[1757339229742,4.67661672,213.83,213.79,0.66]
[1757339230033,4.67619305,213.85,213.8,40.14]
[1757339230233,13.59559401,213.87,213.81,0.66]
[1757339230525,24.27912104,213.87,213.81,0.66]
[1757339230735,28.95506989,213.87,213.81,0.66]
[1757339230907,40.64441388,213.87,213.81,0.66]
[1757339231110,13.59559401,213.85,213.81,40.14]
[1757339231312,10.68352703,213.86,213.81,40.14]
[1757339231507,24.27912104,213.86,213.82,0.66]
[1757339231737,4.67617488,213.85,213.82,0.66]
[1757339232432,27.05013913,213.85,213.79,26.0]
[1757339232622,16.3666121,213.85,213.8,39.46]
[1757339232823,4.67617488,213.85,213.81,0.66]
[1757339233333,15.35970191,213.85,213.76,1e-08]
[1757339233541,10.68352703,213.84,213.77,40.12]
[1757339233720,22.37396425,213.85,213.77,44.79790429]
[1757339233914,22.37396425,213.85,213.77,40.12]
[1757339234720,11.69043722,213.85,213.78,0.66]
[1757339235110,13.59559401,213.87,213.8,26.0]
[1757339235311,4.67521165,213.9,213.81,0.66]
[1757339235510,10.68352703,213.89,213.81,0.66]
[1757339235740,4.67551898,213.88,213.82,26.0]
[1757339235918,4.67551898,213.88,213.83,0.66]
[1757339236111,4.67551898,213.88,213.84,39.44]
[1757339236112,27.04784346,213.88,213.84,39.44]
[1757339236317,16.36431643,213.88,213.84,39.44]
[1757339236526,27.04784346,213.88,213.84,39.44]
[1757339236730,16.36431643,213.88,213.84,40.1]
[1757339237036,4.67508181,213.9,213.85,0.66]
[1757339237340,13.65559401,213.93,213.85,0.66]
[1757339237639,0.06,213.93,213.87,26.0]
[1757339237819,0.06,213.93,213.88,0.66]
[1757339238137,10.74352703,213.93,213.82,11.69164357]
[1757339238339,10.74352703,213.93,213.85,0.66]
[1757339238915,10.68352703,213.91,213.85,0.66]
[1757339239255,10.68352703,213.88,213.86,39.42]
[1757339239542,10.68352703,213.87,213.82,0.66]
[1757339239731,4.67617488,213.85,213.83,39.42]
[1757339240120,4.67617488,213.85,213.78,0.66]
[1757339240324,4.67617488,213.85,213.79,39.42]
[1757339240536,4.67617488,213.85,213.8,0.66]
[1757339240734,4.67617488,213.85,213.81,0.66]
[1757339241020,4.67617488,213.85,213.82,0.66]
[1757339241230,4.67617488,213.85,213.79,39.42]
[1757339241443,15.35970191,213.85,213.79,39.42]
[1757339241749,13.59559401,213.88,213.8,0.66]
[1757339241921,10.68352703,213.9,213.82,26.0]
[1757339242118,4.67486326,213.91,213.82,26.66]
[1757339242314,20.75761976,213.9,213.82,26.66]
[1757339242648,7.16202575,213.88,213.83,39.4]
[1757339242821,13.59559401,213.9,213.84,39.4]
[1757339243139,7.16202575,213.86,213.84,39.4]
[1757339243340,13.59559401,213.9,213.84,39.4]
[1757339243547,7.16202575,213.86,213.84,39.4]
[1757339243922,4.67530038,213.89,213.85,0.66]
[1757339244123,4.67530038,213.89,213.86,0.66]
[1757339244327,13.59559401,213.91,213.87,0.66]
[1757339244621,4.73461226,213.93,213.88,0.66]
[1757339244832,4.73461226,213.93,213.89,0.66]